{"text_format":"1","workbook":"xlsx","n_sheets":4,"sheets":["Jahreszinsen","Monatszinsen","Tageszinsen","Zinseszinsen"],"not_rendered":{"charts":0,"images":1,"macros":1,"external_links":0,"defined_names":0,"comments":0,"pivot_tables":0},"unopened":[],"bounds":{"document_bytes":16777216,"sheet_cells":100000,"rows_first":2000,"rows_last":500,"rows_between":2000,"halvings":0,"cell_chars":16384,"cell_head_chars":4096},"cells_cut":0,"cells_raw":0,"read":"whole","date_system":"1900"}

{"sheet":"Jahreszinsen","index":0,"n_rows":17,"n_cols":11,"rows_kept":17,"cut":false,"hidden":false,"merged":[[2,0,2,1],[2,3,2,4],[2,6,2,7],[2,9,2,10]]}
["Jahreszinsen"]
[]
["Zinsen",null,null,"Kapital",null,null,"Zeit",null,null,"Zinssatz"]
["Kapital",10000,null,"Zinsen",3000,null,"Zinsen",3000,null,"Zinsen",3000]
["Zinssatz",5,null,"Zinssatz",5,null,"Zinssatz",5,null,"Kapital",10000]
["Jahre",6,null,"Jahre",6,null,"Kapital",10000,null,"Jahre",6]
[]
["Zinsen",{"$f":"(B4*B5*B6)/100","v":3000},null,"Kapital",{"$f":"(100*E4)/(E5*E6)","v":10000},null,"Jahre",{"$f":"(H4*100)/(H5*H6)","v":6},null,"Zinssatz",{"$f":"(K4*100)/(K5*K6)","v":5}]
[]
[]
["1. Speichern Sie die Tabelle unter einem anderen Namen in Ihrem Standardordner."]
[]
["2. Berechnen Sie die Felder B8, E8, H8 und K8. (Dazu müssen Sie Jahreszinsen berechnen können!)"]
[]
["3. Ändern Sie die Eingabewerte und kontrollieren Sie Ihre Ergebnisse."]
[]
["4. Wechseln Sie zur Tabelle Monatszinsen."]

{"sheet":"Monatszinsen","index":1,"n_rows":19,"n_cols":11,"rows_kept":19,"cut":false,"hidden":false,"merged":[[2,0,2,1],[2,3,2,4],[2,6,2,7],[2,9,2,10]]}
["Monatszinsen"]
[]
["Zinsen",null,null,"Kapital",null,null,"Zeit",null,null,"Zinssatz"]
["Monate",12,null,"Monate",12,null,"Zinsen",{"$f":"E5","v":500},null,"Monate",12]
["Kapital",10000,null,"Zinsen",{"$f":"B8","v":500},null,"Zinssatz",5,null,"Zinsen",{"$f":"H4","v":500}]
["Zinssatz",5,null,"Zinssatz",5,null,"Kapital",10000,null,"Kapital",10000]
[]
["Zinsen",{"$f":"(B5*B6*B4)/(100*12)","v":500},null,"Kapital",{"$f":"(100*12*E5)/(E6*E4)","v":10000},null,"Tage",{"$f":"(H4*100*12)/(H5*H6)","v":12},null,"Zinssatz",{"$f":"(K5*100*12)/(K6*K4)","v":5}]
[]
[]
["1. Berechnen Sie die Monatszinsen im Feld B8."]
[]
["2. Ändern Sie die Eingabewerte und kontrollieren Sie Ihre Ergebnisse."]
[]
["3. Berechnen Sie in den Feldern E8, H8 und K8 das Kapital, die Monate und den Zinssatz."]
[]
["4. Ändern Sie die Eingabewerte und kontrollieren Sie Ihre Ergebnisse."]
[]
["5. Wechseln Sie ind die Tabelle Tageszinsen."]

{"sheet":"Tageszinsen","index":2,"n_rows":23,"n_cols":11,"rows_kept":23,"cut":false,"hidden":false,"merged":[[2,0,2,1],[2,3,2,4],[2,6,2,7],[2,9,2,10]]}
["Tageszinsen"]
[]
["Zinsen",null,null,"Kapital",null,null,"Zeit",null,null,"Zinssatz"]
["Einzahlung","2004-07-12",null,"Einzahlung","2004-07-12",null,null,null,null,"Einzahlung","2004-07-12"]
["Fälligkeit","2004-12-31",null,"Fälligkeit","2004-12-31",null,null,null,null,"Fälligkeit","2004-12-31"]
["Tage",{"$f":"DAYS360(B4,B5)","v":169},null,"Tage",{"$f":"DAYS360(E4,E5)","v":169},null,"Zinsen",{"$f":"E7","v":234.72222222222223},null,"Tage",{"$f":"DAYS360(K4,K5)","v":169}]
["Kapital",10000,null,"Zinsen",{"$f":"B10","v":234.72222222222223},null,"Zinssatz",5,null,"Zinsen",{"$f":"H6","v":234.72222222222223}]
["Zinssatz",5,null,"Zinssatz",5,null,"Kapital",10000,null,"Kapital",10000]
[]
["Zinsen",{"$f":"(B7*B8*B6)/(100*360)","v":234.72222222222223},null,"Kapital",{"$f":"(100*360*E7)/(E8*E6)","v":10000},null,"Tage",{"$f":"(H6*100*360)/(H7*H8)","v":169},null,"Zinssatz",{"$f":"(K7*100*360)/(K8*K6)","v":5}]
[]
[]
["1. Berechnen Sie im Feld B6 die Zinstage nach der Deutschen Methode mit der Formel TAGE360(B4;B5)"]
[]
["2. Berechnen Sie die Tageszinsen im Feld B10."]
[]
["3. Ändern Sie die Eingabewerte und kontrollieren Sie Ihre Ergebnisse."]
[]
["4. Berechnen Sie in den Feldern E10, H10 und K10 das Kapital, die Tage und den Zinssatz."]
[]
["5. Ändern Sie die Eingabewerte und kontrollieren Sie Ihre Ergebnisse."]
[]
["6. Wechseln Sie die Tabelle Zinseszinsen"]

{"sheet":"Zinseszinsen","index":3,"n_rows":16,"n_cols":5,"rows_kept":16,"cut":false,"hidden":false,"merged":[[2,0,2,1],[2,3,2,4]]}
["Zinseszinsen"]
[]
["Kapitalwendwert",null,null,"Kapitalanfangswert"]
["Jahre",6,null,"Jahre",6]
["Kapitalanfangswert",10000,null,"Kapitalendwert",{"$f":"B8","v":13400.956406249999}]
["Zinssatz",5,null,"Zinssatz",5]
[]
["Kapitalendwert",{"$f":"B5*(1+(B6/100))^B4","v":13400.956406249999},null,"Kapitalanfangswert",{"$f":"E5*(1+(E6/100))^-E4","v":10000}]
[]
[]
["1. Berechnen Sie im Feld B8 den Kapitalendwert nach der Formel:"]
["   Kapitalendwert = Kapitalanfangswert *(1+(Zinssatz/100)Jahre"]
["   (Eine Hochzahl wird in Excel durch das vorgestellte Zeichen ^ definiert)"]
[" "]
["2. Berechnen Sie im Feld E8 den Kapitalanfangswert nach der Formel:"]
["   Kapitalanfangswert = Kapitalendwert * (1+(Zinssatz/100))-Jahre"]